Workbook

Sheet 자동판매기
A2: 자동판매기 매출현황
A4: 번호 | B4: 제품명 | C4: 분류 | D4: 제1호기 | E4: 제2호기 | F4: 제3호기 | G4: 제4호기 | H4: 제5호기 | I4: 제6호기 | J4: 제7호기 | K4: 총판매량
A5: 22 | B5: 불고기버거 | C5: 간식 | D5: 5842 | E5: 7595 | F5: 4189 | G5: 2910 | H5: 2605 | I5: 4519 | J5: 1323 | K5: =SUM(D5:J5) -> 28983
A6: 12 | B6: 빵 | C6: 간식 | D6: 4478 | E6: 930 | F6: 6499 | G6: 1777 | H6: 3503 | I6: 3456 | J6: 1026 | K6: =SUM(D6:J6) -> 21669
A7: 11 | B7: 새우버거 | C7: 간식 | D7: 1399 | E7: 1895 | F7: 4430 | G7: 3453 | H7: 3250 | I7: 1863 | J7: 2271 | K7: =SUM(D7:J7) -> 18561
A8: 21 | B8: 요구르트 | C8: 간식 | D8: 3611 | E8: 1085 | F8: 505 | G8: 6315 | H8: 7064 | I8: 2737 | J8: 3803 | K8: =SUM(D8:J8) -> 25120
A9: 5 | B9: 초코바 | C9: 간식 | D9: 1854 | E9: 5878 | F9: 5484 | G9: 2429 | H9: 7503 | I9: 7398 | J9: 5500 | K9: =SUM(D9:J9) -> 36046
A10: 16 | B10: 치즈버거 | C10: 간식 | D10: 965 | E10: 1542 | F10: 5637 | G10: 7274 | H10: 5992 | I10: 2264 | J10: 4723 | K10: =SUM(D10:J10) -> 28397
A11: 3 | B11: 캔디 | C11: 간식 | D11: 1833 | E11: 6603 | F11: 6492 | G11: 7270 | H11: 4016 | I11: 1264 | J11: 4094 | K11: =SUM(D11:J11) -> 31572
A12: 10 | B12: 쿠키 | C12: 간식 | D12: 4013 | E12: 4370 | F12: 7250 | G12: 6469 | H12: 5336 | I12: 6901 | J12: 7056 | K12: =SUM(D12:J12) -> 41395
A13: 34 | B13: 토스트 | C13: 간식 | D13: 1182 | E13: 1580 | F13: 6287 | G13: 4400 | H13: 4088 | I13: 603 | J13: 5756 | K13: =SUM(D13:J13) -> 23896
A14: 14 | B14: 핫도그 | C14: 간식 | D14: 2934 | E14: 1702 | F14: 1417 | G14: 2937 | H14: 841 | I14: 6227 | J14: 4024 | K14: =SUM(D14:J14) -> 20082
A15: 30 | B15: 핫바 | C15: 간식 | D15: 1670 | E15: 2534 | F15: 4325 | G15: 5690 | H15: 7133 | I15: 6896 | J15: 6655 | K15: =SUM(D15:J15) -> 34903
A16: 19 | B16: 계란 | C16: 기타 | D16: 6880 | E16: 1637 | F16: 1271 | G16: 3424 | H16: 7169 | I16: 3065 | J16: 3689 | K16: =SUM(D16:J16) -> 27135
A17: 6 | B17: 신문 | C17: 기타 | D17: 6421 | E17: 2929 | F17: 5044 | G17: 7061 | H17: 1294 | I17: 919 | J17: 5733 | K17: =SUM(D17:J17) -> 29401
A18: 7 | B18: 우산 | C18: 기타 | D18: 4927 | E18: 5156 | F18: 873 | G18: 2908 | H18: 1528 | I18: 1997 | J18: 7358 | K18: =SUM(D18:J18) -> 24747
A19: 29 | B19: 팝콘 | C19: 기타 | D19: 6038 | E19: 929 | F19: 5279 | G19: 2347 | H19: 3567 | I19: 3308 | J19: 5174 | K19: =SUM(D19:J19) -> 26642
A20: 15 | B20: 휴지 | C20: 기타 | D20: 569 | E20: 4037 | F20: 5445 | G20: 4771 | H20: 6609 | I20: 3816 | J20: 1770 | K20: =SUM(D20:J20) -> 27017
A21: 28 | B21: 망고쥬스 | C21: 음료 | D21: 5206 | E21: 7517 | F21: 1401 | G21: 5347 | H21: 7415 | I21: 5799 | J21: 3692 | K21: =SUM(D21:J21) -> 36377
A22: 25 | B22: 매실음료 | C22: 음료 | D22: 1424 | E22: 2403 | F22: 2333 | G22: 5523 | H22: 5151 | I22: 5811 | J22: 841 | K22: =SUM(D22:J22) -> 23486
A23: 18 | B23: 비타민음료 | C23: 음료 | D23: 766 | E23: 4600 | F23: 7423 | G23: 4781 | H23: 1280 | I23: 3436 | J23: 5175 | K23: =SUM(D23:J23) -> 27461
A24: 8 | B24: 사이다 | C24: 음료 | D24: 5725 | E24: 5086 | F24: 1777 | G24: 3664 | H24: 6408 | I24: 1583 | J24: 3579 | K24: =SUM(D24:J24) -> 27822
A25: 2 | B25: 수정과 | C25: 음료 | D25: 5749 | E25: 3598 | F25: 2218 | G25: 4883 | H25: 7270 | I25: 7363 | J25: 1607 | K25: =SUM(D25:J25) -> 32688
A26: 33 | B26: 식혜 | C26: 음료 | D26: 1925 | E26: 3368 | F26: 1782 | G26: 5312 | H26: 3118 | I26: 4221 | J26: 5722 | K26: =SUM(D26:J26) -> 25448
A27: 27 | B27: 오렌지쥬스 | C27: 음료 | D27: 6320 | E27: 1810 | F27: 6167 | G27: 4271 | H27: 2464 | I27: 1712 | J27: 906 | K27: =SUM(D27:J27) -> 23650
A28: 13 | B28: 이온음료 | C28: 음료 | D28: 4084 | E28: 4583 | F28: 7123 | G28: 4194 | H28: 3113 | I28: 5500 | J28: 2217 | K28: =SUM(D28:J28) -> 30814
A29: 1 | B29: 콜라 | C29: 음료 | D29: 3013 | E29: 7139 | F29: 4564 | G29: 1001 | H29: 690 | I29: 3603 | J29: 6481 | K29: =SUM(D29:J29) -> 26491
A30: 31 | B30: 환타 | C30: 음료 | D30: 873 | E30: 4383 | F30: 2663 | G30: 3488 | H30: 7591 | I30: 7107 | J30: 1253 | K30: =SUM(D30:J30) -> 27358
A31: 20 | B31: 매운라면 | C31: 컵라면 | D31: 6912 | E31: 2514 | F31: 4085 | G31: 1851 | H31: 5876 | I31: 2735 | J31: 1641 | K31: =SUM(D31:J31) -> 25614
A32: 24 | B32: 새우면 | C32: 컵라면 | D32: 5136 | E32: 2108 | F32: 3350 | G32: 6359 | H32: 983 | I32: 3242 | J32: 1347 | K32: =SUM(D32:J32) -> 22525
A33: 26 | B33: 생우동 | C33: 컵라면 | D33: 2834 | E33: 558 | F33: 4142 | G33: 7476 | H33: 3163 | I33: 3479 | J33: 2108 | K33: =SUM(D33:J33) -> 23760
A34: 9 | B34: 설렁탕면 | C34: 컵라면 | D34: 1079 | E34: 4452 | F34: 733 | G34: 1779 | H34: 2146 | I34: 3961 | J34: 5744 | K34: =SUM(D34:J34) -> 19894
A35: 17 | B35: 육개장면 | C35: 컵라면 | D35: 6125 | E35: 1133 | F35: 4930 | G35: 1293 | H35: 2023 | I35: 1499 | J35: 1338 | K35: =SUM(D35:J35) -> 18341
A36: 4 | B36: 즉석떡볶이 | C36: 컵라면 | D36: 5560 | E36: 2624 | F36: 5196 | G36: 1392 | H36: 4956 | I36: 1105 | J36: 1786 | K36: =SUM(D36:J36) -> 22619
A37: 23 | B37: 즉석자장면 | C37: 컵라면 | D37: 3737 | E37: 1040 | F37: 2173 | G37: 6614 | H37: 7410 | I37: 5892 | J37: 4051 | K37: =SUM(D37:J37) -> 30917
A38: 32 | B38: 해물맛짬뽕 | C38: 컵라면 | D38: 1241 | E38: 3313 | F38: 4250 | G38: 2841 | H38: 616 | I38: 3639 | J38: 4888 | K38: =SUM(D38:J38) -> 20788
